bitfinex/quotes_ETHUSD_20250611
["timestamp","ask_amount","ask_price","bid_price","bid_amount"]
[1749646329085,9.4166,2803.4,2803.0,0.1776]
[1749646329327,9.239,2803.4,2803.1,0.01337572]
[1749646330907,3.74492267,2803.3,2803.1,0.01337572]
[1749646331089,9.64285159,2803.2,2803.1,0.01337572]
[1749646331303,19.64285159,2803.2,2803.1,0.01337572]
[1749646331503,23.2555031,2803.2,2803.1,0.01337572]
[1749646333044,23.8055031,2803.2,2803.1,0.01337572]
[1749646333197,24.7415031,2803.2,2803.1,0.01337572]
[1749646333399,4.36348582,2803.2,2803.1,0.01337572]
[1749646333941,10.728,2803.4,2803.1,0.01337572]
[1749646335445,9.239,2803.4,2803.1,0.01337572]
[1749646335611,3.56735159,2803.2,2803.1,0.01337572]
[1749646335812,8.05935159,2803.2,2803.1,0.01337572]
[1749646336027,11.6720031,2803.2,2803.1,0.01337572]
[1749646336426,21.6720031,2803.2,2803.1,0.01337572]
[1749646336625,26.03548892,2803.2,2803.1,0.01337572]
[1749646337029,22.46713733,2803.2,2803.1,0.01337572]
[1749646337231,8.85448582,2803.2,2803.1,0.01337572]
[1749646337551,12.42183741,2803.2,2803.1,0.01337572]
[1749646338237,18.77121071,2803.4,2803.1,0.01337572]
[1749646338415,3.56735159,2803.2,2803.1,0.01337572]
[1749646338786,4.36348582,2803.2,2803.1,0.01337572]
[1749646339414,7.93083741,2803.2,2803.1,0.01337572]
[1749646339756,22.41883741,2803.2,2803.1,0.01337572]
[1749646339939,24.03103741,2803.2,2803.1,0.01337572]
[1749646340142,28.19368892,2803.2,2803.1,0.01337572]
[1749646340528,23.70568892,2803.2,2803.1,0.01337572]
[1749646340856,29.68168892,2803.2,2803.1,0.01337572]
[1749646341041,10.70281839,2803.0,2801.9,0.8533]
[1749646341247,0.1784,2802.4,2801.9,1.0317]
[1749646341416,4.5285101,2802.4,2801.9,1.0317]
[1749646341617,4.3501101,2802.4,2801.9,0.8533]
[1749646341818,4.3501101,2802.4,2802.2,0.1784]
[1749646342147,4.3501101,2802.4,2802.3,0.00576059]
[1749646342545,4.3501101,2802.9,2802.3,0.86186059]
[1749646342745,4.3501101,2802.9,2802.6,0.1784]
[1749646342998,0.1776,2802.8,2802.3,1.04026059]
[1749646343177,0.1776,2802.8,2802.7,0.00575977]
[1749646344046,4.3501101,2802.9,2802.7,0.00575977]
[1749646344905,4.3501101,2802.9,2802.8,0.1776]
[1749646345121,4.3501101,2802.9,2802.7,0.00575977]
[1749646345306,4.3501101,2802.9,2802.8,0.00659394]
[1749646346025,8.72736848,2802.9,2802.8,0.00659394]
[1749646346342,5.15963507,2802.9,2802.8,0.00659394]
[1749646346626,4.3501101,2802.9,2802.8,0.00659394]
[1749646346784,4.3501101,2803.3,2802.8,0.00659394]
[1749646347116,4.3501101,2803.3,2802.9,0.8561]
[1749646348018,4.3501101,2803.3,2803.0,0.00659346]
[1749646349717,4.3501101,2803.2,2803.0,0.00659346]
[1749646349931,4.3501101,2803.2,2803.1,0.8561]
[1749646350133,4.3501101,2803.2,2803.1,2.66996935]
[1749646350418,4.3501101,2803.5,2803.3,0.8561]
[1749646350878,4.3501101,2803.5,2803.4,0.00584325]
[1749646351078,4.3501101,2803.5,2803.4,0.18344325]
[1749646352079,4.3501101,2803.5,2803.4,0.73344325]
[1749646352277,4.3501101,2803.5,2803.4,2.37833278]
[1749646352508,4.3501101,2803.8,2803.6,0.8561]
[1749646352912,4.3501101,2803.8,2803.7,0.18344263]
[1749646353086,4.3501101,2803.8,2803.7,1.03954263]
[1749646353583,0.04,2803.9,2803.7,1.03954263]
[1749646353584,0.04,2803.9,2803.8,0.8561]
[1749646353781,0.04,2803.9,2803.8,2.67549947]
[1749646353996,0.04,2803.9,2803.8,13.23201478]
[1749646354206,0.04,2803.9,2803.8,17.70501478]
[1749646354388,0.00522316,2803.9,2803.8,17.70501478]
[1749646357695,0.00046603,2803.9,2803.8,17.70501478]
[1749646359328,0.04,2804.9,2803.9,0.55]
[1749646359489,0.04,2804.9,2804.8,0.7276]
[1749646359691,0.04,2804.9,2804.8,15.1936]
[1749646359922,0.04,2804.9,2804.8,15.2092098]
[1749646360427,0.04,2804.9,2804.8,16.0649098]
[1749646360633,0.04,2804.9,2804.8,16.85369933]
[1749646361126,0.04,2804.9,2804.8,0.1932098]
[1749646361327,0.04,2804.9,2804.8,0.0156098]
[1749646363207,0.04,2804.9,2804.8,0.8713098]
[1749646363406,0.04,2804.9,2804.8,0.0156098]
[1749646364845,3.60518948,2804.9,2804.8,0.0156098]
[1749646365032,4.11998843,2804.9,2804.8,0.0156098]
[1749646365332,5.60818843,2804.9,2804.8,0.0156098]
[1749646366299,5.9578916,2804.9,2804.8,0.0156098]
[1749646366499,15.9578916,2804.9,2804.8,0.0156098]
[1749646367413,23.66234362,2804.9,2804.8,0.0156098]
[1749646368247,1.6071,2804.4,2803.3,0.8557]
[1749646368543,5.0329928,2804.3,2803.3,0.8557]
[1749646368744,3.4769486,2804.2,2803.3,0.8557]
[1749646370537,3.56615886,2804.2,2803.3,0.8557]
[1749646370740,5.03300633,2804.3,2803.4,1.08557]
[1749646371104,3.56608635,2804.2,2803.4,1.08557]
[1749646371306,0.1776,2804.1,2803.6,0.1776]
[1749646371541,3.56639392,2804.0,2803.6,0.1776]
[1749646371703,0.1776,2804.1,2803.6,0.1776]
[1749646371704,3.56653945,2803.9,2803.6,0.1776]
[1749646371907,3.56658628,2803.9,2803.6,0.1776]
[1749646372104,3.56671541,2803.7,2803.6,0.1776]
[1749646372345,3.56671541,2803.7,2803.2,0.1776]
[1749646372346,3.56685548,2803.6,2803.2,0.1776]
[1749646373001,1.7391,2803.7,2803.2,0.1776]
[1749646373235,0.1776,2803.7,2803.2,0.1776]
[1749646373444,3.0285,2804.0,2803.0,0.8713]
[1749646373445,3.2061,2804.0,2803.5,0.1776]
[1749646373815,0.1776,2804.0,2803.5,0.1776]
[1749646374216,4.76180755,2804.0,2803.5,0.1776]
[1749646374525,4.76175236,2804.0,2803.5,0.1776]
[1749646374700,1.19536,2804.0,2803.5,0.1776]
[1749646375541,0.1776,2804.0,2803.5,0.1776]
[1749646375940,3.56651819,2803.9,2803.5,0.1776]
[1749646376136,7.91671849,2803.8,2803.5,0.1776]
[1749646376321,3.56671786,2803.7,2803.0,10.8713]
[1749646376567,3.56671786,2803.7,2803.3,0.1776]
[1749646376766,1.32072156,2803.7,2803.3,0.1776]
[1749646377085,4.88750778,2803.7,2803.3,0.1776]
[1749646377254,3.56687671,2803.6,2803.3,0.1776]
[1749646377687,3.56709709,2803.4,2802.7,0.6298]
[1749646378004,0.79172072,2803.3,2802.9,0.1776]
[1749646378539,4.3501101,2803.2,2802.9,0.1776]
[1749646378790,4.3501101,2803.1,2802.1,0.6698]
[1749646378995,4.99743902,2803.2,2802.2,0.1784]
[1749646378996,3.56812736,2802.6,2802.2,0.1784]
[1749646379144,3.74643348,2802.7,2802.2,0.1784]
[1749646379345,0.1784,2802.7,2802.2,0.1784]
[1749646379987,0.1784,2802.7,2802.1,0.6698]
[1749646380213,4.3501101,2803.0,2802.1,0.6698]
[1749646380484,4.5277101,2803.0,2802.5,0.1784]
[1749646380686,5.40437002,2803.0,2802.5,0.1784]
[1749646381090,4.3501101,2803.0,2802.2,0.55]
[1749646381251,4.3501101,2803.0,2802.7,0.1776]
[1749646382290,4.3501101,2803.0,2802.6,0.6298]
[1749646382490,4.3501101,2803.0,2802.9,0.1776]
[1749646382643,1.4712,2802.9,2802.8,0.00467232]
[1749646382843,6.25632111,2802.9,2802.5,0.1784]
[1749646383048,5.47394442,2802.9,2802.8,0.01239134]
[1749646383378,3.56862465,2802.2,2802.1,0.04]
[1749646383579,5.39668711,2802.2,2802.1,0.04]
[1749646383744,1.82806246,2802.2,2802.1,0.04]
[1749646383963,1.448,2802.3,2802.1,0.04]
[1749646384364,3.56862465,2802.2,2802.1,0.04]
[1749646384909,15.01655955,2802.3,2802.1,0.04]
[1749646385109,1.448,2802.3,2802.1,0.04]
[1749646385324,11.4712,2802.5,2802.1,0.04]
[1749646385488,1.64873819,2802.4,2802.1,0.04]
[1749646386100,5.21717693,2802.4,2802.1,0.04]
[1749646386434,1.64873819,2802.4,2802.1,0.04]
[1749646386715,5.21715163,2802.4,2802.1,0.04]
[1749646386875,1.64873819,2802.4,2802.1,0.04]
[1749646387075,4.00277312,2802.9,2802.1,0.04]
[1749646387281,9.45587468,2802.8,2802.1,0.04]
[1749646387479,5.01587468,2802.8,2802.1,0.04]
[1749646387731,1.448,2802.8,2802.1,0.04]
[1749646389006,4.7,2802.7,2802.2,0.6422]
[1749646390505,4.7,2803.1,2802.3,0.55]
[1749646391109,1.448,2803.3,2802.5,0.55]
[1749646391308,1.448,2803.3,2802.6,0.6422]
[1749646393022,1.4002,2803.2,2802.6,0.6422]
[1749646393315,0.1776,2803.4,2802.9,0.1776]
[1749646393500,1.01776,2803.4,2803.1,0.1776]
[1749646393707,1.4002,2803.5,2803.1,0.1776]
[1749646393916,1.4002,2803.5,2802.6,0.6422]
[1749646394092,3.5675442,2803.1,2802.7,0.1776]
[1749646394300,3.74501799,2803.2,2802.7,0.1776]
[1749646394499,0.3745018,2803.1,2802.7,0.1776]
[1749646394804,0.1776,2803.2,2802.7,0.1776]
[1749646395007,5.01396855,2802.7,2802.1,0.04]
[1749646395250,1.4459,2802.7,2802.1,0.04]
[1749646395423,0.1784,2802.3,2802.1,0.04]
[1749646395626,1.4782,2803.0,2802.1,0.04]
[1749646395819,0.1776,2802.9,2802.4,0.1784]
[1749646397011,4.7,2803.1,2802.4,0.6422]
[1749646397220,4.7,2803.0,2802.4,0.6422]
[1749646397389,4.7,2803.0,2802.8,0.1776]
[1749646397589,4.8776,2803.2,2802.8,0.1776]
[1749646397815,4.8776,2803.2,2802.4,0.6422]
[1749646398012,8.44495734,2803.2,2802.6,0.1784]
[1749646398292,4.8776,2803.2,2802.6,0.1784]
[1749646398502,4.8776,2803.2,2802.4,0.6422]
[1749646398707,4.7,2803.2,2802.9,0.1776]
[1749646399820,4.7,2803.2,2802.6,0.1784]
[1749646399821,9.96776326,2803.1,2802.6,0.1784]
[1749646400296,3.56761257,2803.0,2802.6,0.1784]
[1749646400610,6.4002,2803.1,2802.6,0.1784]
[1749646400792,0.81762,2803.0,2802.5,0.1784]
[1749646401000,4.38529359,2803.0,2802.5,0.1784]
[1749646401203,0.81762,2803.0,2802.5,0.1784]
[1749646401560,0.1776,2803.0,2802.5,0.1784]
[1749646401712,4.7,2803.1,2802.4,0.6422]
[1749646401909,4.7,2803.1,2802.8,0.1776]
[1749646403115,4.7,2803.1,2802.5,0.206]
[1749646403348,5.70432781,2803.1,2802.6,0.1784]
[1749646403516,4.8776,2803.1,2802.6,0.1784]
[1749646403851,3.56762918,2803.0,2802.6,0.1784]
[1749646404152,8.44514041,2803.1,2802.6,0.1784]
[1749646404375,8.44513112,2803.1,2802.6,0.1784]
[1749646404664,4.41213865,2803.0,2802.6,0.1784]
[1749646404952,0.84451311,2803.0,2802.6,0.1784]
[1749646405263,4.41219118,2803.0,2802.6,0.1784]
[1749646405551,3.56774908,2802.9,2802.6,0.1784]
[1749646405713,4.7,2802.8,2802.6,0.1784]
[1749646406535,10.31769901,2802.8,2802.1,0.04]
[1749646406736,8.44639685,2802.7,2802.2,0.1784]
[1749646407073,3.56816168,2802.6,2802.2,0.1784]
[1749646407435,4.8784,2802.7,2802.2,0.1784]
[1749646407639,8.44639113,2802.7,2802.2,0.1784]
[1749646407836,6.28479602,2802.7,2802.2,0.1784]
[1749646408058,3.56811673,2802.6,2802.2,0.1784]
[1749646408259,9.85283643,2802.7,2802.2,0.1784]
[1749646408568,6.28479602,2802.7,2802.2,0.1784]
[1749646409266,9.85290431,2802.7,2802.2,0.1784]
[1749646409624,4.68977022,2802.6,2802.2,0.1784]
[1749646409832,1.12164043,2802.6,2802.2,0.1784]
[1749646410246,6.28479602,2802.7,2802.2,0.1784]
[1749646410866,4.8784,2802.7,2802.2,0.1784]
[1749646411067,4.7,2802.7,2802.1,0.04]
[1749646411273,4.7,2802.7,2802.4,0.1784]
[1749646411660,8.26792972,2802.8,2802.4,0.1784]
[1749646412031,4.7,2802.8,2802.4,0.1784]
[1749646412374,8.26786154,2802.8,2802.4,0.1784]
[1749646412568,9.6119732,2802.8,2802.4,0.1784]
[1749646412867,6.04411166,2802.8,2802.4,0.1784]
[1749646413068,3.56821104,2802.6,2802.1,0.04]
[1749646413235,3.56821104,2802.6,2802.2,0.1784]
[1749646413435,4.90404188,2802.6,2802.1,0.04]
[1749646413649,0.1784,2802.5,2802.1,0.04]
[1749646414441,4.7,2802.8,2802.1,0.04]
[1749646414646,4.8776,2802.8,2802.3,0.1784]
[1749646414849,4.7,2802.8,2802.2,0.206]
[1749646415086,4.7,2802.8,2802.6,0.1784]
[1749646415568,4.7,2803.0,2802.7,0.206]
[1749646415768,4.7,2803.1,2802.7,0.206]
[1749646415973,4.7,2803.1,2802.9,0.1776]
[1749646416601,4.7,2802.9,2802.4,4.412]
[1749646416749,3.56787915,2802.8,2802.4,0.1784]
[1749646417082,4.8776,2802.9,2802.4,0.1784]
[1749646417596,8.44539114,2802.9,2802.4,0.1784]
[1749646417951,3.56793089,2802.8,2802.4,0.1784]
[1749646418146,1.20132694,2802.7,2802.4,0.1784]
[1749646418366,4.7,2802.6,2802.3,0.206]
[1749646418788,4.7,2802.6,2802.3,0.3844]
[1749646419762,4.7,2802.6,2802.3,0.1784]
[1749646419989,4.7,2802.6,2802.2,0.1784]
[1749646420850,3.56831694,2802.5,2802.1,0.04]
[1749646421054,6.06204408,2802.4,2802.1,0.04]
[1749646421464,9.63042282,2802.4,2802.1,0.04]
[1749646421679,3.56984334,2801.3,2801.1,0.04]
[1749646421875,3.56989861,2801.2,2801.1,0.04]
[1749646423674,3.92226004,2801.2,2801.1,0.04]
[1749646424074,10.0,2801.3,2801.1,0.04]
[1749646424682,13.56977702,2801.3,2801.1,0.04]
[1749646424885,1.6334277,2801.2,2801.1,0.04]
[1749646425780,5.20332631,2801.2,2801.1,0.04]
[1749646425981,1.6334277,2801.2,2801.1,0.04]
[1749646426495,1.429,2801.4,2801.1,0.04]
[1749646426875,10.0,2801.5,2801.1,0.04]
[1749646427078,1.429,2801.5,2801.1,0.04]
[1749646427273,13.56941878,2801.6,2801.1,0.04]
[1749646427619,1.48423188,2801.5,2801.1,0.04]
[1749646428324,1.429,2801.6,2801.1,0.04]
[1749646428610,3.56952713,2801.5,2801.1,0.04]
[1749646428822,5.35427892,2801.6,2801.1,0.04]
[1749646428977,1.78485829,2801.6,2801.1,0.04]
[1749646429185,3.56972266,2801.4,2801.1,0.04]
[1749646429626,3.56978545,2801.3,2801.1,0.04]
[1749646429985,3.56969065,2801.4,2801.1,0.04]
[1749646430222,3.56971345,2801.4,2801.1,0.04]
[1749646430408,7.97071345,2801.4,2801.1,0.04]
[1749646430607,4.39743716,2801.3,2801.1,0.04]
[1749646430806,4.85939861,2801.2,2801.1,0.04]
[1749646431329,1.429,2801.2,2801.1,0.04]
[1749646431483,2.25664893,2801.3,2801.1,0.04]
[1749646431795,0.1784,2801.6,2801.1,0.2184]
[1749646434446,0.1784,2801.6,2801.2,0.2033]
[1749646434725,0.1784,2801.6,2801.1,0.2184]
[1749646434726,3.56989861,2801.2,2801.1,0.04]
[1749646435233,3.56970897,2801.4,2801.1,0.04]
[1749646435390,3.56978678,2801.3,2801.1,0.04]
[1749646435593,3.92687729,2801.2,2801.1,0.04]
[1749646435913,3.56989861,2801.2,2801.1,0.04]
[1749646436118,3.56981543,2801.3,2801.1,0.04]
[1749646436523,3.56989861,2801.2,2801.1,0.04]
[1749646436983,1.429,2801.5,2801.1,0.04]
[1749646437183,1.6074,2801.5,2801.1,0.04]
[1749646437853,1.80441808,2801.5,2801.1,0.2433]
[1749646438055,1.80441808,2801.5,2801.1,0.04]
[1749646438247,0.37541808,2801.5,2801.1,0.04]
[1749646439037,0.19701808,2801.5,2801.1,0.04]
[1749646439410,3.56972574,2801.4,2801.1,0.04]
[1749646439636,0.37667438,2801.3,2801.1,0.04]
[1749646439995,0.3627808,2801.7,2801.1,0.04]
[1749646440196,3.56920018,2801.8,2801.1,0.04]
[1749646440432,3.56907554,2801.9,2801.1,0.04]
[1749646440737,1.2805,2801.7,2801.1,0.04]
[1749646441027,3.5698568,2801.3,2801.1,0.04]
[1749646441188,3.56964991,2801.4,2801.1,0.04]
[1749646441392,3.56959747,2801.5,2801.1,0.04]
[1749646441593,4.78294532,2801.6,2801.1,0.04]
[1749646441788,3.5697148,2801.4,2801.1,0.04]
[1749646442037,1.2805,2801.7,2801.1,0.04]
[1749646442443,3.56979368,2801.3,2801.1,0.04]
[1749646443006,3.56942854,2801.6,2801.1,0.04]
[1749646443352,3.56970525,2801.4,2801.1,0.04]
[1749646443533,3.56989135,2801.3,2801.1,0.04]
[1749646443710,3.56989861,2801.2,2801.1,0.04]
[1749646444219,14.95859861,2801.2,2801.1,0.04]
[1749646445538,16.36859861,2801.2,2801.1,0.04]
[1749646445831,18.80114761,2801.2,2801.1,0.04]
[1749646446209,13.842549,2801.2,2801.1,0.04]
[1749646446421,17.41244761,2801.2,2801.1,0.04]
[1749646446623,10.0,2800.5,2800.1,0.04]
[1749646446826,3.57112178,2800.3,2800.1,0.04]
[1749646447422,3.57117348,2800.2,2800.1,0.04]
[1749646447625,0.35879014,2800.2,2800.1,0.04]
[1749646447826,3.57117348,2800.2,2800.1,0.04]
[1749646448058,3.74957348,2800.2,2800.1,0.04]
[1749646448354,5.15957348,2800.2,2800.1,0.04]
[1749646448516,17.8758968,2800.2,2800.1,0.04]
[1749646449013,3.57244927,2799.2,2799.1,0.04]
[1749646449257,4.98244927,2799.2,2799.1,0.04]
[1749646449412,14.98244927,2799.2,2799.1,0.04]
[1749646449615,18.32107021,2799.2,2799.1,0.04]
[1749646449906,18.32107021,2799.2,2798.3,0.1784]
[1749646449907,3.57347055,2798.4,2798.3,0.1784]
[1749646450112,3.57372596,2798.2,2797.6,0.1784]
[1749646450322,1.29991242,2798.2,2797.5,0.2033]
[1749646450555,1.41,2798.3,2797.5,0.2033]
[1749646450796,0.1784,2798.2,2797.7,0.1784]
[1749646451141,0.35901938,2798.5,2797.5,0.2033]
[1749646451329,0.1784,2798.4,2797.5,0.2033]
[1749646451546,0.69456654,2798.4,2797.5,0.2033]
[1749646451859,0.1784,2798.4,2797.5,0.2033]
[1749646452215,0.3624104,2798.5,2797.5,0.2033]
[1749646452216,3.93583538,2798.5,2797.5,0.2033]
[1749646452615,3.93583538,2798.5,2797.3,0.14389626]
[1749646452616,1.7734104,2798.5,2797.3,0.14389626]
[1749646452855,4.91572596,2798.2,2797.3,0.14389626]
[1749646453063,14.91572596,2798.2,2797.3,0.14389626]
[1749646453353,22.99585879,2798.2,2797.3,0.14389626]
[1749646453562,17.20285879,2798.2,2797.3,0.14389626]
[1749646453743,18.61385879,2798.2,2797.3,0.14389626]
[1749646454576,17.20285879,2798.2,2797.3,0.14389626]
[1749646454873,22.99385879,2798.2,2797.3,0.14389626]
[1749646455031,18.07913283,2798.2,2797.4,0.2033]
[1749646455215,21.65285879,2798.2,2797.4,0.2033]
[1749646455552,18.07913283,2798.2,2797.4,0.2033]
[1749646455714,12.28713283,2798.2,2797.4,0.2033]
[1749646455909,1.6703104,2798.5,2797.4,0.2033]
[1749646456162,10.0,2798.3,2797.4,0.2033]
[1749646456327,1.411,2798.4,2797.4,0.2033]
[1749646456527,1.411,2798.4,2798.1,0.2433]
[1749646457027,4.98455099,2798.4,2798.1,0.04]
[1749646457230,1.3836,2798.2,2798.1,0.04]
[1749646457456,1.3971,2798.6,2798.1,0.04]
[1749646457675,15.79,2798.5,2798.1,0.04]
[1749646458017,10.0,2798.5,2798.1,0.04]
[1749646458304,1.411,2798.6,2798.1,0.04]
[1749646459114,3.9586109,2798.8,2798.1,0.04]
[1749646459317,4.25541985,2798.8,2798.1,0.04]
[1749646459681,0.29680895,2798.7,2798.1,0.04]
[1749646459983,1.3088,2798.5,2798.1,0.04]
[1749646460185,3.57369661,2798.3,2798.1,0.04]
[1749646460384,5.98360895,2798.5,2798.1,0.04]
[1749646460723,1.70780895,2798.5,2798.1,0.04]
[1749646461220,0.29680895,2798.5,2798.2,0.3817]
[1749646461374,0.60749387,2798.5,2798.2,0.3817]
[1749646461577,0.1784,2798.3,2798.1,0.04]
[1749646461897,3.75207404,2798.3,2798.1,0.04]
[1749646462102,0.1784,2798.3,2798.1,0.04]
[1749646462303,3.57372596,2798.2,2798.1,0.04]
[1749646462482,0.73257339,2798.2,2798.1,0.04]
[1749646463198,0.60749387,2798.5,2798.1,0.04]
[1749646463392,1.411,2798.4,2798.1,0.04]
[1749646463621,0.78589387,2798.5,2798.1,0.04]
[1749646463797,0.29680895,2798.5,2798.1,0.04]
[1749646464108,0.29680895,2798.5,2798.2,0.1784]
[1749646464882,0.29680895,2798.5,2798.3,0.2054]
[1749646465118,0.29680895,2798.5,2798.4,0.1784]
[1749646465905,0.29680895,2798.5,2798.4,0.7284]
[1749646466104,0.29680895,2798.5,2798.4,2.00664]
[1749646467223,1.411,2799.7,2798.9,0.55]
[1749646467423,1.411,2799.7,2798.9,10.55]
[1749646467831,1.411,2799.7,2799.5,0.1784]
[1749646468002,1.411,2799.7,2799.6,0.1784]
[1749646468205,1.70780895,2799.7,2799.6,0.1784]
[1749646468898,1.70780895,2799.7,2799.6,0.3838]
[1749646469092,0.29680895,2799.7,2799.6,0.9338]
[1749646469291,0.29680895,2799.7,2799.6,2.02718]
[1749646470890,0.29680895,2799.7,2799.6,16.39618]
[1749646471525,0.1784,2800.5,2799.7,10.55]
[1749646471842,0.29680895,2800.4,2799.7,10.55]
[1749646472145,0.29680895,2800.4,2800.2,0.1784]
[1749646472695,5.06473918,2800.3,2799.8,0.1784]
[1749646473031,0.1784,2800.2,2799.7,0.1784]
[1749646473218,0.1784,2800.2,2799.6,0.2054]
[1749646473219,0.29680895,2800.4,2799.6,0.2054]
[1749646473730,3.57161857,2799.9,2799.2,0.2054]
[1749646474039,0.35716186,2799.8,2799.2,0.2054]
[1749646474330,0.65397081,2799.8,2799.2,0.2054]
[1749646474492,3.57181126,2799.7,2799.2,0.2054]
[1749646474917,3.5721727,2799.5,2798.8,0.2054]
[1749646475134,4.96613321,2799.5,2798.8,0.2054]
[1749646475336,0.98065082,2799.4,2798.8,0.2054]
[1749646475633,4.9660672,2799.5,2798.8,0.2054]
[1749646475833,1.394,2799.5,2798.8,0.2054]
[1749646476130,4.96612282,2799.5,2798.8,0.2054]
[1749646476433,0.29680895,2799.4,2798.8,0.2054]
[1749646478322,0.29680895,2799.4,2798.8,4.5684]
[1749646478834,0.29680895,2799.4,2798.8,0.2054]
[1749646479041,0.29680895,2799.4,2798.8,4.5674]
[1749646479235,0.29680895,2799.4,2798.8,0.2054]
[1749646479434,0.29680895,2799.4,2798.8,4.5674]
[1749646480135,0.29680895,2799.4,2798.8,0.2054]
[1749646480538,0.68368681,2799.4,2798.8,0.2054]
[1749646480746,0.29680895,2799.4,2798.8,0.2054]
[1749646483716,0.29680895,2799.4,2799.2,0.1784]
[1749646485063,0.29680895,2799.4,2799.0,0.1784]
[1749646486251,3.86907006,2799.4,2799.0,0.1784]
[1749646486453,0.40474701,2799.3,2799.0,0.1784]
[1749646486656,0.29680895,2799.2,2799.0,0.1784]
[1749646487708,0.29680895,2799.2,2798.5,0.2054]
[1749646487903,0.29680895,2799.2,2798.8,0.1784]
[1749646488120,5.9468,2799.1,2798.8,0.1784]
[1749646488325,0.29680895,2799.0,2798.8,0.1784]
[1749646488520,4.66,2798.9,2798.8,0.1784]
[1749646488739,4.66,2798.9,2798.1,0.2454]
[1749646488740,4.95680895,2798.9,2798.1,0.2454]
[1749646489052,3.57310143,2798.7,2798.3,0.1784]
[1749646489252,0.29680895,2798.6,2798.3,0.1784]
[1749646490326,0.29680895,2798.6,2798.1,0.04]
[1749646490327,5.9301,2798.5,2798.1,0.04]
[1749646490525,0.29680895,2798.4,2798.2,0.1784]
[1749646491655,4.66,2798.3,2798.1,0.04]
[1749646491852,4.66,2798.3,2798.1,0.96234756]
[1749646492153,4.66,2798.3,2798.2,0.1784]
[1749646493457,4.66,2798.3,2798.1,0.04]
[1749646493865,0.29680895,2798.2,2798.1,0.04]
[1749646494415,0.29680895,2798.2,2798.1,0.2184]
[1749646494947,5.45248985,2798.2,2798.1,0.04]
[1749646495252,10.40511581,2798.2,2798.1,0.04]
[1749646495498,3.57402691,2798.0,2797.3,0.32229626]
[1749646495672,0.1784,2797.8,2797.3,0.32229626]
[1749646495849,1.3878,2797.7,2797.3,0.32229626]
[1749646496153,2.36384502,2797.7,2797.3,0.32229626]
[1749646496309,4.62,2797.6,2797.3,0.32229626]
[1749646496817,4.91680895,2797.6,2797.3,0.32229626]
[1749646497138,4.91680895,2797.6,2797.3,0.14389626]
[1749646497139,5.26551774,2797.5,2797.3,0.14389626]
[1749646497325,1.00639177,2797.4,2797.3,0.14389626]
[1749646498419,1.30320072,2797.4,2797.3,0.14389626]
[1749646498861,5.0563487,2797.4,2797.3,0.14389626]
[1749646499061,6.3829487,2797.4,2797.3,0.14389626]
[1749646499989,16.3829487,2797.4,2797.3,0.14389626]
[1749646501932,3.57500357,2797.2,2797.1,0.04]
[1749646502138,30.97508831,2797.2,2797.1,0.04]
[1749646502452,4.90108209,2796.2,2795.5,0.1784]
[1749646502631,16.28008209,2796.2,2795.2,0.3781]
[1749646502942,9.18347557,2796.8,2795.8,9.56157557]
[1749646502943,0.1784,2796.6,2795.8,9.56157557]
[1749646503146,0.35725518,2796.7,2796.0,0.1784]
[1749646503344,1.3513,2796.6,2795.5,0.3781]
[1749646503667,3.57628209,2796.2,2795.5,0.3781]
[1749646503866,1.3513,2796.6,2795.5,0.3781]
[1749646504170,13.57596121,2796.5,2795.5,0.3781]
[1749646504472,10.0,2796.5,2795.5,0.3781]
[1749646504633,2.7303,2796.6,2795.5,0.3781]
[1749646504833,3.57591149,2796.5,2795.5,0.3781]
[1749646505166,5.25062115,2796.4,2795.5,0.3781]
[1749646505366,4.62,2796.4,2795.5,0.3781]
[1749646505568,0.29680895,2796.3,2796.1,0.4181]
[1749646506443,0.29680895,2796.3,2796.2,0.55]
[1749646506649,0.29680895,2796.3,2796.2,12.50386676]
[1749646506833,1.38,2797.6,2796.5,0.55]
[1749646507033,1.38,2797.6,2796.7,0.55]
[1749646507467,0.29680895,2797.5,2796.7,0.55]
[1749646507632,0.29680895,2797.5,2796.6,0.3781]
[1749646507633,3.57482416,2797.4,2796.6,0.3781]
[1749646507828,3.87150627,2797.5,2796.6,0.3781]
[1749646508034,0.52515063,2797.4,2796.6,0.3781]
[1749646508257,3.57485013,2797.4,2796.6,0.3781]
[1749646508442,4.88680695,2797.3,2796.6,0.3781]
[1749646508629,1.3119,2797.3,2796.6,0.3781]
[1749646509676,10.5464,2797.7,2796.6,0.3781]
[1749646509974,11.9264,2797.7,2796.7,1.03781]
[1749646510162,10.637,2797.7,2796.7,1.03781]
[1749646510359,10.637,2797.7,2796.8,0.3781]
[1749646510565,1.3974,2797.6,2796.5,0.3781]
[1749646510872,10.0,2797.3,2796.5,0.3781]
[1749646511065,11.2799,2797.4,2796.5,0.3781]
[1749646511457,2.6589,2797.4,2796.5,0.3781]
[1749646511672,0.26589,2797.3,2796.5,0.3781]
[1749646511880,0.26589,2797.3,2796.1,0.04]
[1749646511881,3.57545657,2796.9,2796.2,0.3781]
[1749646512180,3.57545657,2796.9,2796.1,0.04]
[1749646512181,11.2897,2797.1,2796.1,0.04]
[1749646512393,3.57596169,2796.5,2796.1,0.04]
[1749646512594,4.62,2796.4,2796.1,0.04]
[1749646513403,0.1784,2796.3,2796.1,0.04]
[1749646513684,4.7984,2796.3,2796.2,0.3781]
[1749646513887,4.62,2796.3,2796.2,0.5565]
[1749646514069,4.62,2797.0,2796.2,0.5565]
[1749646514271,5.88184097,2797.0,2796.2,0.5565]
[1749646514569,5.70344097,2797.0,2796.2,0.3781]
[1749646514771,4.62,2797.0,2796.6,0.1784]
[1749646515149,3.57550368,2796.9,2796.2,0.3781]